[Event "XLI Barbera del Valles Open 2018"]
[Site "Barbera del Valles"]
[Date "2018.07.09"]
[Round "6"]
[White "Oliva Castaneda, Kevel"]
[Black "Aguero Jimenez, Luis Lazaro"]
[Result "1/2-1/2"]
[ECO "A06"]
[WhiteElo "2491"]
[BlackElo "2473"]
[Annotator "ChessBase"]
[PlyCount "21"]
[EventDate "2018.07.04"]
[EventType "swiss"]
[EventCountry "ESP"]
[SourceTitle "playchess.com"]
[Source "ChessBase"]
[SourceQuality "1"]
[TimeControl "5400+30"]

1. Nf3 {[%emt 0:00:00]} d5 {[%emt 0:00:00]} 2. g3 {[%emt 0:00:00]} Bg4 {[%emt 0:01:17]} 3. Bg2 {[%emt 0:00:37]} Nd7 {[%emt 0:00:20]} 4. O-O {[%emt 0:01:31]} e5 {[%emt 0:01:19]} 5. d3 {[%emt 0:01:35]} Ngf6 {[%emt 0:01:13]} 6. Nbd2 {[%emt 0:01:37]} Bc5 {[%emt 0:11:39]} 7. h3 {[%emt 0:01:23]} Bh5 {[%emt 0:00:27]} 8. e4 {[%emt 0:00:16]} dxe4 {[%emt 0:00:13]} 9. dxe4 {[%emt 0:00:05]} O-O {[%emt 0:00:16]} 10. Qe1 {[%emt 0:00:06]} Re8 {[%emt 0:01:13]} 11. Nb3 {[%emt 0:09:05]} 1/2-1/2

[Event "XLI Barbera del Valles Open 2018"]
[Site "Barbera del Valles"]
[Date "2018.07.09"]
[Round "6"]
[White "Cori, Kevin J."]
[Black "Martinez Alcantara, Jose Eduardo"]
[Result "1/2-1/2"]
[ECO "C01"]
[WhiteElo "2487"]
[BlackElo "2545"]
[Annotator "ChessBase"]
[PlyCount "36"]
[EventDate "2018.07.04"]
[EventType "swiss"]
[EventCountry "ESP"]
[SourceTitle "playchess.com"]
[Source "ChessBase"]
[SourceQuality "1"]
[TimeControl "5400+30"]

1. e4 {[%emt 0:00:00]} e6 {[%emt 0:00:00]} 2. d4 {[%emt 0:00:00]} d5 {[%emt 0:00:00]} 3. exd5 {[%emt 0:00:50]} exd5 {[%emt 0:00:00]} 4. Nf3 {[%emt 0:00:07]} Bd6 {[%emt 0:00:00]} 5. Bg5 {[%emt 0:00:48]} Nf6 {[%emt 0:00:00]} 6. Bd3 {[%emt 0:00:31]} O-O {[%emt 0:00:49]} 7. O-O {[%emt 0:01:06]} Bg4 {[%emt 0:00:43]} 8. h3 {[%emt 0:01:02]} Bh5 {[%emt 0:00:19]} 9. Nbd2 {[%emt 0:01:24]} Nbd7 {[%emt 0:00:28]} 10. Re1 Re8 11. c3 {[%emt 0:01:26]} Rxe1+ {[%emt 0:00:46]} 12. Qxe1 {[%emt 0:00:06]} Bxf3 {[%emt 0:00:06]} 13. Nxf3 h6 {[%emt 0:00:00]} 14. Bxf6 {[%emt 0:03:42]} Qxf6 {[%emt 0:00:41]} 15. Qe2 Qe7 {[%emt 0:00:02]} 16. Qxe7 {[%emt 0:02:17]} Bxe7 {[%emt 0:00:08]} 17. Re1 {[%emt 0:00:12]} Kf8 {[%emt 0:00:41]} 18. Kf1 g6 1/2-1/2

[Event "XLI Barbera del Valles Open 2018"]
[Site "Barbera del Valles"]
[Date "2018.07.09"]
[Round "6"]
[White "Torre, Eugenio"]
[Black "Asis, Tommy"]
[Result "0-1"]
[ECO "A45"]
[WhiteElo "2460"]
[BlackElo "2538"]
[Annotator "ChessBase"]
[PlyCount "61"]
[EventDate "2018.07.04"]
[EventType "swiss"]
[EventCountry "ESP"]
[SourceTitle "playchess.com"]
[Source "ChessBase"]
[SourceQuality "1"]
[TimeControl "5400+30"]

1. d4 {[%emt 0:00:00]} Nf6 {[%emt 0:06:26]} 2. Bg5 {[%emt 0:01:10]} e6 {[%emt 0:00:49]} 3. Nd2 {[%emt 0:03:24]} c5 {[%emt 0:01:42]} 4. e3 {[%emt 0:00:15]} cxd4 {[%emt 0:04:00]} 5. exd4 {[%emt 0:00:26]} Be7 {[%emt 0:00:30]} 6. Ngf3 {[%emt 0:00:29]} d6 {[%emt 0:06:19]} 7. Bd3 {[%emt 0:05:19]} Nbd7 {[%emt 0:00:27]} 8. a4 {[%emt 0:04:25]} O-O {[%emt 0:06:57]} 9. O-O {[%emt 0:00:32]} b6 {[%emt 0:21:27]} 10. a5 {[%emt 0:06:59]} bxa5 {[%emt 0:02:58]} 11. Nc4 {[%emt 0:00:51]} Rb8 {[%emt 0:00:33]} 12. Nxa5 {[%emt 0:05:37]} Qc7 {[%emt 0:00:56]} 13. b3 {[%emt 0:04:29]} h6 {[%emt 0:05:22]} 14. Bd2 {[%emt 0:05:37]} e5 {[%emt 0:00:52]} 15. Re1 {[%emt 0:02:01]} Re8 {[%emt 0:00:11]} 16. c4 {[%emt 0:06:30]} Bf8 {[%emt 0:02:16]} 17. Qc2 {[%emt 0:08:58]} Bb7 {[%emt 0:06:39]} 18. d5 {[%emt 0:00:12]} e4 {[%emt 0:01:13]} 19. Bxe4 {[%emt 0:01:34]} Nxe4 {[%emt 0:00:09]} 20. Rxe4 {[%emt 0:00:28]} Bxd5 {[%emt 0:00:13]} 21. Rxe8 {[%emt 0:00:32]} Rxe8 {[%emt 0:00:05]} 22. Nd4 {[%emt 0:02:48]} Be4 {[%emt 0:06:33]} 23. Qa2 {[%emt 0:07:27]} d5 {[%emt 0:04:34]} 24. Qa4 {[%emt 0:00:59]} Bc5 {[%emt 0:04:03]} 25. Be3 {[%emt 0:01:57]} Bxd4 {[%emt 0:06:49]} 26. Bxd4 {[%emt 0:01:39]} Re6 {[%emt 0:00:04]} 27. g3 {[%emt 0:10:56]} Ne5 {[%emt 0:00:38]} 28. Bxe5 {[%emt 0:03:53]} Qxe5 {[%emt 0:00:06]} 29. b4 {[%emt 0:09:16]} Bf3 {[%emt 0:02:26]} 30. Rf1 {[%emt 0:00:23]} Qf5 {[%emt 0:00:14]} 31. Ra1 0-1

[Event "XLI Barbera del Valles Open 2018"]
[Site "Barbera del Valles"]
[Date "2018.07.09"]
[Round "6"]
[White "Mohammad Nubairshah Shaikh"]
[Black "Karthik Venkataraman"]
[Result "1/2-1/2"]
[ECO "D90"]
[WhiteElo "2441"]
[BlackElo "2514"]
[Annotator "ChessBase"]
[PlyCount "35"]
[EventDate "2018.07.04"]
[EventType "swiss"]
[EventCountry "ESP"]
[SourceTitle "playchess.com"]
[Source "ChessBase"]
[SourceQuality "1"]
[TimeControl "5400+30"]

1. d4 Nf6 2. c4 g6 3. Nc3 d5 4. Nf3 Bg7 5. h4 c6 6. cxd5 cxd5 7. Bf4 Nc6 8. e3 O-O 9. Qb3 Na5 10. Qb4 Bf5 11. Be2 Ne4 12. Nxe4 dxe4 13. Ne5 Rc8 14. O-O Rc2 15. Bd1 Rc8 16. Be2 Rc2 17. Bd1 Rc8 18. Be2 1/2-1/2

[Event "XLI Barbera del Valles Open 2018"]
[Site "Barbera del Valles"]
[Date "2018.07.10"]
[Round "7"]
[White "Ortiz Suarez, Isan Reynaldo"]
[Black "Guseinov, Gadir"]
[Result "1/2-1/2"]
[ECO "B27"]
[WhiteElo "2548"]
[BlackElo "2654"]
[Annotator "ChessBase"]
[PlyCount "44"]
[EventDate "2018.07.04"]
[EventType "swiss"]
[EventCountry "ESP"]
[SourceTitle "playchess.com"]
[Source "ChessBase"]
[SourceQuality "1"]
[TimeControl "5400+30"]

1. e4 {[%emt 0:00:00]} c5 {[%emt 0:00:00]} 2. Nf3 {[%emt 0:00:00]} g6 {[%emt 0:00:00]} 3. d4 {[%emt 0:00:06]} cxd4 {[%emt 0:00:00]} 4. Qxd4 {[%emt 0:00:22]} Nf6 {[%emt 0:00:00]} 5. e5 {[%emt 0:00:36]} Nc6 {[%emt 0:00:00]} 6. Qa4 {[%emt 0:00:05]} Nd5 {[%emt 0:00:01]} 7. Qe4 {[%emt 0:00:06]} Nb6 {[%emt 0:00:04]} 8. Nc3 {[%emt 0:00:49]} Bg7 {[%emt 0:00:06]} 9. Bf4 {[%emt 0:01:18]} d5 {[%emt 0:00:36]} 10. exd6 {[%emt 0:05:23]} Bf5 {[%emt 0:02:57]} 11. dxe7 {[%emt 0:06:35]} Qd7 {[%emt 0:09:45]} 12. Qe3 {[%emt 0:05:12]} Nb4 {[%emt 0:06:11]} 13. Rc1 {[%emt 0:04:50]} Nxc2+ {[%emt 0:05:38]} 14. Rxc2 {[%emt 0:00:27]} Bxc2 {[%emt 0:00:03]} 15. Bb5 {[%emt 0:10:54]} Bxc3+ {[%emt 0:00:27]} 16. Qxc3 {[%emt 0:00:04]} Qxb5 {[%emt 0:00:06]} 17. Qxh8+ {[%emt 0:00:08]} Kxe7 {[%emt 0:00:06]} 18. Qd4 {[%emt 0:03:50]} Nd5 {[%emt 0:01:03]} 19. Qe5+ {[%emt 0:03:22]} Kd7 {[%emt 0:00:08]} 20. Qd6+ {[%emt 0:00:20]} Ke8 {[%emt 0:00:16]} 21. Nd4 {[%emt 0:09:59]} Qc4 {[%emt 0:01:51]} 22. Qe5+ {[%emt 0:03:21]} Kd7 {[%emt 0:00:15]} 1/2-1/2

[Event "XLI Barbera del Valles Open 2018"]
[Site "Barbera del Valles"]
[Date "2018.07.10"]
[Round "7"]
[White "Munoz, Miguel"]
[Black "Jimenez, Adrian"]
[Result "1-0"]
[ECO "B20"]
[WhiteElo "2500"]
[BlackElo "2211"]
[Annotator "RC"]
[PlyCount "83"]
[EventDate "2018.07.04"]
[EventType "swiss"]
[EventCountry "ESP"]
[SourceTitle "playchess.com"]
[Source "ChessBase"]
[SourceQuality "1"]
[TimeControl "5400+30"]

1. e4 {[%emt 0:07:00]} c5 {[%emt 0:00:00]} 2. Ne2 {[%emt 0:00:06]} d6 {[%emt 0:00:37]} 3. g3 {[%emt 0:00:13]} Nc6 {[%emt 0:03:28]} 4. Bg2 {[%emt 0:00:11]} g6 {[%emt 0:02:16]} 5. c3 {[%emt 0:00:07]} Bg7 {[%emt 0:00:29]} 6. d4 {[%emt 0:00:09]} cxd4 {[%emt 0:00:23]} 7. cxd4 {[%emt 0:00:05]} e5 {[%emt 0:05:03]} 8. Be3 {[%emt 0:00:10]} Nf6 {[%emt 0:15:54]} 9. h3 {[%emt 0:00:17]} O-O {[%emt 0:00:36]} 10. Nbc3 {[%emt 0:00:30]} Nd7 {[%emt 0:08:37]} 11. O-O {[%emt 0:00:53]} b6 {[%emt 0:22:50]} 12. Qa4 {[%emt 0:02:11]} Bb7 {[%emt 0:01:06]} 13. Rad1 {[%emt 0:05:23]} Na5 {[%emt 0:08:13]} 14. b3 {[%emt 0:00:55]} Rc8 {[%emt 0:02:04]} 15. Qa3 {[%emt 0:02:36]} Re8 {[%emt 0:04:06]} 16. dxe5 {[%emt 0:13:56]} dxe5 {[%emt 0:01:19]} 17. Nd5 {[%emt 0:05:04]} Bf8 {[%emt 0:02:46]} 18. b4 {[%emt 0:02:03]} Bc6 {[%emt 0:07:47]} 19. Qd3 {[%emt 0:04:44]} Nb7 {[%emt 0:00:11]} 20. Qa6 {[%emt 0:01:42]} Nd6 {[%emt 0:00:55]} 21. Nec3 {[%emt 0:06:40]} Bb7 22. Qa4 {[%emt 0:00:10]} Bc6 {[%emt 0:03:59]} 23. Qxa7 {[%emt 0:01:50]} Nc4 {[%emt 0:06:31]} 24. b5 {[%emt 0:01:19]} Ra8 {[%emt 0:01:24]} 25. Qc7 {[%emt 0:00:19]} Bxd5 {[%emt 0:00:40]} 26. Nxd5 {[%emt 0:00:13]} Nxe3 {[%emt 0:00:11]} 27. fxe3 {[%emt 0:00:16]} Kg7 {[%emt 0:01:10]} 28. h4 {[%emt 0:02:01]} Rc8 {[%emt 0:00:23]} 29. Qxd8 {[%emt 0:00:13]} Rcxd8 {[%emt 0:00:51]} 30. Nc7 {[%emt 0:01:52]} Nf6 {[%emt 0:00:19]} 31. Nxe8+ {[%emt 0:03:14]} Rxe8 {[%emt 0:00:01]} 32. Rc1 {[%emt 0:00:09]} Bc5 {[%emt 0:00:41]} 33. Rxc5 {[%emt 0:00:37]} bxc5 {[%emt 0:00:00]} 34. a4 {[%emt 0:05:47]} Ra8 {[%emt 0:00:28]} 35. Ra1 {[%emt 0:05:10]} Ra5 {[%emt 0:00:01]} 36. Bh3 {[%emt 0:00:16]} Nxe4 37. b6 {[%emt 0:00:15]} Ra6 {[%emt 0:02:26]} 38. a5 {[%emt 0:00:18]} Nd6 {[%emt 0:00:22]} 39. Bc8 {[%emt 0:03:00]} Ra8 {[%emt 0:00:38]} 40. Bd7 Rd8 {[%emt 0:00:43]} 41. a6 {[%emt 0:03:18]} c4 {[%emt 0:00:31]} 42. a7 {[%emt 0:00:23]} 1-0

[Event "XLI Barbera del Valles Open 2018"]
[Site "Barbera del Valles"]
[Date "2018.07.11"]
[Round "8"]
[White "Stella, Andrea"]
[Black "Oliva Castaneda, Kevel"]
[Result "1-0"]
[ECO "A48"]
[WhiteElo "2504"]
[BlackElo "2491"]
[Annotator "RC"]
[PlyCount "137"]
[EventDate "2018.07.04"]
[EventType "swiss"]
[EventCountry "ESP"]
[SourceTitle "playchess.com"]
[Source "ChessBase"]
[SourceQuality "1"]
[TimeControl "5400+30"]

1. d4 {[%emt 0:00:00]} Nf6 {[%emt 0:00:00]} 2. Nf3 {[%emt 0:00:00]} g6 {[%emt 0:01:49]} 3. c4 {[%emt 0:00:41]} Bg7 {[%emt 0:00:35]} 4. g3 {[%emt 0:00:11]} b6 {[%emt 0:00:21]} 5. Bg2 {[%emt 0:00:20]} Bb7 {[%emt 0:00:03]} 6. O-O {[%emt 0:00:56]} O-O {[%emt 0:00:03]} 7. Re1 e6 {[%emt 0:01:34]} 8. Nc3 {[%emt 0:02:06]} Ne4 {[%emt 0:00:11]} 9. Nxe4 {[%emt 0:00:05]} Bxe4 {[%emt 0:00:04]} 10. Bg5 {[%emt 0:00:05]} f6 {[%emt 0:07:30]} 11. Be3 {[%emt 0:01:53]} Nc6 {[%emt 0:05:58]} 12. d5 {[%emt 0:14:46]} Ne7 {[%emt 0:05:26]} 13. Nh4 {[%emt 0:20:48]} Bxg2 {[%emt 0:01:30]} 14. Nxg2 {[%emt 0:00:05]} c5 {[%emt 0:07:42]} 15. dxc6 {[%emt 0:03:47]} Nxc6 {[%emt 0:03:04]} 16. Qd2 {[%emt 0:01:05]} Rf7 {[%emt 0:01:05]} 17. Bh6 {[%emt 0:01:09]} Bxh6 {[%emt 0:01:08]} 18. Qxh6 {[%emt 0:00:02]} Qf8 {[%emt 0:00:13]} 19. Qxf8+ {[%emt 0:01:52]} Kxf8 {[%emt 0:00:08]} 20. Red1 {[%emt 0:00:29]} Rd8 {[%emt 0:00:54]} 21. Ne3 {[%emt 0:00:19]} d6 {[%emt 0:00:49]} 22. Rac1 {[%emt 0:03:36]} Rfd7 {[%emt 0:00:17]} 23. f3 {[%emt 0:01:06]} Ke7 {[%emt 0:01:12]} 24. Kf2 {[%emt 0:00:08]} Rc8 {[%emt 0:02:15]} 25. Rc3 {[%emt 0:06:04]} Ne5 {[%emt 0:01:00]} 26. f4 {[%emt 0:02:25]} Nf7 {[%emt 0:00:22]} 27. g4 {[%emt 0:00:55]} f5 {[%emt 0:00:39]} 28. g5 {[%emt 0:01:46]} h6 {[%emt 0:03:25]} 29. h4 {[%emt 0:00:06]} h5 {[%emt 0:00:45]} 30. Rcd3 {[%emt 0:05:00]} Nd8 {[%emt 0:03:24]} 31. Ra3 {[%emt 0:03:51]} Nc6 {[%emt 0:00:42]} 32. Ra4 {[%emt 0:04:03]} Na5 {[%emt 0:01:55]} 33. Rd3 {[%emt 0:01:29]} Nc6 {[%emt 0:03:40]} 34. b4 {[%emt 0:07:03]} Rdc7 {[%emt 0:02:41]} 35. Kg3 {[%emt 0:03:14]} Rb7 {[%emt 0:01:08]} 36. Rda3 {[%emt 0:00:34]} a5 {[%emt 0:03:01]} 37. bxa5 {[%emt 0:01:32]} bxa5 {[%emt 0:00:26]} 38. Rd3 {[%emt 0:00:48]} Rb2 {[%emt 0:05:28]} 39. Kf2 {[%emt 0:00:19]} Rcb8 {[%emt 0:00:09]} 40. Rd1 {[%emt 0:01:21]} Rb1 {[%emt 0:03:55]} 41. Ke1 {[%emt 0:03:43]} Kd7 {[%emt 0:04:01]} 42. Ra3 {[%emt 0:00:40]} Kc7 {[%emt 0:01:41]} 43. Rad3 {[%emt 0:00:52]} Rxd1+ {[%emt 0:00:07]} 44. Nxd1 {[%emt 0:00:30]} Rb4 {[%emt 0:00:31]} 45. Rc3 {[%emt 0:00:36]} Kb6 {[%emt 0:02:35]} 46. a3 {[%emt 0:03:16]} Rb1 {[%emt 0:00:25]} 47. Kd2 {[%emt 0:00:19]} Kc7 {[%emt 0:04:32]} 48. Kc2 {[%emt 0:00:46]} Rb8 {[%emt 0:00:26]} 49. Rd3 {[%emt 0:02:31]} Nd8 {[%emt 0:09:25]} 50. Nc3 {[%emt 0:00:11]} Nb7 {[%emt 0:00:09]} 51. Nb5+ {[%emt 0:02:53]} Kc6 {[%emt 0:00:18]} 52. Nd4+ {[%emt 0:00:03]} Kd7 {[%emt 0:00:09]} 53. Rb3 {[%emt 0:00:02]} e5 {[%emt 0:02:42]} 54. fxe5 {[%emt 0:00:08]} dxe5 {[%emt 0:00:05]} 55. Nf3 {[%emt 0:00:03]} Kc7 {[%emt 0:00:37]} 56. Nxe5 {[%emt 0:00:16]} Re8 {[%emt 0:00:05]} 57. Rb5 {[%emt 0:00:40]} Re6 {[%emt 0:00:50]} 58. Kd1 {[%emt 0:01:19]} a4 {[%emt 0:01:54]} 59. Nd3 {[%emt 0:00:43]} Nd6 {[%emt 0:00:51]} 60. Re5 {[%emt 0:00:11]} Rxe5 {[%emt 0:01:46]} 61. Nxe5 {[%emt 0:00:01]} Kb6 {[%emt 0:00:08]} 62. Nxg6 {[%emt 0:00:32]} Kc5 {[%emt 0:00:39]} 63. Nf4 Nxc4 {[%emt 0:01:05]} 64. g6 {[%emt 0:01:19]} Ne3+ {[%emt 0:00:06]} 65. Kc1 {[%emt 0:00:42]} Ng4 {[%emt 0:00:21]} 66. Nxh5 {[%emt 0:00:52]} Kd4 {[%emt 0:02:16]} 67. g7 {[%emt 0:00:29]} Nh6 {[%emt 0:00:03]} 68. Nf6 {[%emt 0:00:11]} Ke3 {[%emt 0:00:03]} 69. Kd1 1-0

[Event "XLI Barbera del Valles Open 2018"]
[Site "Barbera del Valles"]
[Date "2018.07.11"]
[Round "8"]
[White "Iniyan, P."]
[Black "Asis, Tommy"]
[Result "1/2-1/2"]
[ECO "A65"]
[WhiteElo "2451"]
[BlackElo "2538"]
[Annotator "ChessBase"]
[PlyCount "63"]
[EventDate "2018.07.04"]
[EventType "swiss"]
[EventCountry "ESP"]
[SourceTitle "playchess.com"]
[Source "ChessBase"]
[SourceQuality "1"]
[TimeControl "5400+30"]

1. d4 {[%emt 0:00:00]} Nf6 {[%emt 0:00:00]} 2. c4 {[%emt 0:00:00]} c5 {[%emt 0:00:27]} 3. d5 {[%emt 0:00:04]} e6 {[%emt 0:00:05]} 4. Nc3 {[%emt 0:00:07]} exd5 {[%emt 0:00:07]} 5. cxd5 {[%emt 0:00:06]} d6 {[%emt 0:00:03]} 6. e4 {[%emt 0:00:09]} g6 {[%emt 0:00:07]} 7. Bd3 {[%emt 0:00:37]} Bg7 {[%emt 0:00:15]} 8. Nge2 {[%emt 0:00:05]} O-O {[%emt 0:00:05]} 9. O-O {[%emt 0:00:09]} Ng4 {[%emt 0:00:04]} 10. Bc2 {[%emt 0:13:36]} Na6 {[%emt 0:01:49]} 11. h3 {[%emt 0:09:37]} Ne5 {[%emt 0:00:24]} 12. f4 {[%emt 0:01:36]} Nc4 {[%emt 0:01:18]} 13. b3 {[%emt 0:01:30]} Na5 {[%emt 0:00:24]} 14. Bb2 {[%emt 0:01:43]} Bd7 {[%emt 0:19:34]} 15. Qc1 {[%emt 0:13:30]} c4 {[%emt 0:15:29]} 16. Ba3 {[%emt 0:17:24]} cxb3 {[%emt 0:19:10]} 17. axb3 {[%emt 0:00:13]} Qb6+ {[%emt 0:00:08]} 18. Kh1 {[%emt 0:00:05]} Rfc8 {[%emt 0:00:29]} 19. Rf3 {[%emt 0:08:50]} Bb5 {[%emt 0:17:07]} 20. Rb1 {[%emt 0:10:00]} Bxe2 {[%emt 0:00:08]} 21. Nxe2 {[%emt 0:00:06]} Nb4 {[%emt 0:00:05]} 22. Bxb4 {[%emt 0:00:15]} Qxb4 {[%emt 0:00:04]} 23. f5 {[%emt 0:03:46]} Rc7 {[%emt 0:04:29]} 24. f6 {[%emt 0:03:41]} Bf8 {[%emt 0:00:04]} 25. Qd1 {[%emt 0:01:56]} Rac8 {[%emt 0:00:11]} 26. Nd4 {[%emt 0:01:35]} Bh6 {[%emt 0:05:18]} 27. Ra1 {[%emt 0:00:05]} a6 {[%emt 0:00:47]} 28. Ra4 {[%emt 0:00:52]} Qd2 {[%emt 0:00:57]} 29. Rd3 {[%emt 0:06:11]} Qf2 {[%emt 0:02:37]} 30. Rf3 {[%emt 0:00:54]} Qd2 {[%emt 0:00:04]} 31. Rd3 {[%emt 0:00:14]} Qf2 {[%emt 0:00:03]} 32. Rf3 {[%emt 0:01:44]} 1/2-1/2

[Event "XLI Barbera del Valles Open 2018"]
[Site "Barbera del Valles"]
[Date "2018.07.11"]
[Round "8"]
[White "Jimenez, Adrian"]
[Black "Manolache, Marius"]
[Result "0-1"]
[ECO "A56"]
[WhiteElo "2211"]
[BlackElo "2494"]
[Annotator "ChessBase"]
[PlyCount "98"]
[EventDate "2018.07.04"]
[EventType "swiss"]
[EventCountry "ESP"]
[SourceTitle "playchess.com"]
[Source "ChessBase"]
[SourceQuality "1"]
[TimeControl "5400+30"]

1. d4 {[%emt 0:00:00]} Nf6 {[%emt 0:00:00]} 2. c4 {[%emt 0:00:00]} c5 {[%emt 0:00:00]} 3. d5 {[%emt 0:00:00]} g6 {[%emt 0:00:00]} 4. Nc3 {[%emt 0:00:00]} Bg7 {[%emt 0:00:00]} 5. e4 {[%emt 0:00:00]} d6 {[%emt 0:00:00]} 6. h3 {[%emt 0:00:00]} O-O {[%emt 0:00:05]} 7. Nf3 {[%emt 0:00:02]} e6 {[%emt 0:00:05]} 8. Bd3 {[%emt 0:00:06]} exd5 {[%emt 0:00:43]} 9. cxd5 {[%emt 0:00:06]} a6 {[%emt 0:00:57]} 10. a4 {[%emt 0:00:04]} Nbd7 {[%emt 0:00:47]} 11. O-O {[%emt 0:00:07]} Nh5 {[%emt 0:00:17]} 12. Bg5 {[%emt 0:00:05]} Bf6 {[%emt 0:00:06]} 13. Be3 {[%emt 0:00:04]} Ne5 {[%emt 0:00:39]} 14. Be2 {[%emt 0:00:05]} Nxf3+ {[%emt 0:00:15]} 15. Bxf3 {[%emt 0:00:04]} Ng7 {[%emt 0:00:07]} 16. Qd2 {[%emt 0:00:04]} Be5 {[%emt 0:01:16]} 17. Bf4 {[%emt 0:00:12]} f6 {[%emt 0:02:33]} 18. Be2 {[%emt 0:07:03]} Bd7 {[%emt 0:01:52]} 19. Bxe5 {[%emt 0:07:34]} fxe5 {[%emt 0:00:07]} 20. f4 {[%emt 0:00:04]} Qe7 {[%emt 0:00:09]} 21. Rf2 {[%emt 0:00:55]} exf4 {[%emt 0:09:16]} 22. Rxf4 {[%emt 0:00:30]} g5 {[%emt 0:00:29]} 23. Rxf8+ {[%emt 0:17:25]} Rxf8 {[%emt 0:00:05]} 24. Rf1 {[%emt 0:00:05]} Rxf1+ {[%emt 0:00:08]} 25. Kxf1 {[%emt 0:00:09]} Qe5 {[%emt 0:00:22]} 26. Kg1 {[%emt 0:01:19]} h6 {[%emt 0:10:11]} 27. a5 {[%emt 0:03:34]} Ne8 {[%emt 0:00:44]} 28. Qe3 {[%emt 0:22:13]} Nf6 {[%emt 0:00:07]} 29. Kf2 {[%emt 0:03:27]} Kf7 {[%emt 0:00:12]} 30. Bf1 {[%emt 0:19:55]} Ke7 {[%emt 0:01:47]} 31. g3 {[%emt 0:01:32]} h5 {[%emt 0:02:41]} 32. Bg2 {[%emt 0:00:27]} Kd8 {[%emt 0:04:51]} 33. b3 {[%emt 0:01:26]} Kc7 {[%emt 0:01:26]} 34. Ne2 {[%emt 0:00:55]} Bb5 {[%emt 0:01:35]} 35. Nc3 {[%emt 0:01:33]} Kb8 {[%emt 0:05:07]} 36. b4 {[%emt 0:02:45]} Nd7 {[%emt 0:03:28]} 37. bxc5 {[%emt 0:02:28]} Nxc5 {[%emt 0:00:06]} 38. Kg1 {[%emt 0:00:13]} Bd3 {[%emt 0:00:40]} 39. Qe1 {[%emt 0:01:15]} Qd4+ {[%emt 0:01:18]} 40. Kh2 {[%emt 0:00:26]} g4 {[%emt 0:01:25]} 41. h4 {[%emt 0:00:37]} Nd7 {[%emt 0:07:02]} 42. Nd1 {[%emt 0:03:36]} Ne5 {[%emt 0:00:38]} 43. Qd2 {[%emt 0:00:01]} Qc5 {[%emt 0:03:45]} 44. Nb2 {[%emt 0:02:27]} Bc2 {[%emt 0:01:12]} 45. Qf4 {[%emt 0:02:29]} Ka8 {[%emt 0:03:44]} 46. Qf8+ {[%emt 0:00:50]} Ka7 {[%emt 0:00:04]} 47. Kh1 {[%emt 0:04:01]} Qxa5 {[%emt 0:07:32]} 48. Qxd6 {[%emt 0:00:08]} Nf3 {[%emt 0:00:34]} 49. Bxf3 {[%emt 0:01:35]} gxf3 {[%emt 0:00:05]} 0-1

[Event "XLI Barbera del Valles Open 2018"]
[Site "Barbera del Valles"]
[Date "2018.07.12"]
[Round "9"]
[White "Ortiz Suarez, Isan Reynaldo"]
[Black "Martinez Alcantara, Jose Eduardo"]
[Result "1/2-1/2"]
[ECO "A46"]
[WhiteElo "2548"]
[BlackElo "2545"]
[Annotator "RC"]
[PlyCount "28"]
[EventDate "2018.07.04"]
[EventType "swiss"]
[EventCountry "ESP"]
[SourceTitle "playchess.com"]
[Source "ChessBase"]
[SourceQuality "1"]
[TimeControl "5400+30"]

1. d4 {[%emt 0:00:00]} Nf6 {[%emt 0:09:12]} 2. Nf3 {[%emt 0:00:00]} e6 {[%emt 0:00:07]} 3. Bf4 {[%emt 0:00:22]} b6 {[%emt 0:00:11]} 4. e3 {[%emt 0:00:14]} Bb7 {[%emt 0:00:11]} 5. h3 {[%emt 0:00:14]} c5 {[%emt 0:00:26]} 6. c3 {[%emt 0:00:07]} Be7 {[%emt 0:00:19]} 7. Nbd2 {[%emt 0:00:11]} O-O {[%emt 0:00:17]} 8. Bd3 {[%emt 0:00:21]} cxd4 {[%emt 0:00:11]} 9. exd4 {[%emt 0:00:15]} d6 {[%emt 0:00:19]} 10. O-O {[%emt 0:00:19]} Nbd7 {[%emt 0:00:12]} 11. Bh2 {[%emt 0:00:11]} a6 {[%emt 0:00:55]} 12. a4 {[%emt 0:00:16]} Re8 {[%emt 0:00:25]} 13. Re1 {[%emt 0:00:22]} Qc7 {[%emt 0:01:05]} 14. Nc4 {[%emt 0:00:30]} Bf8 1/2-1/2

[Event "XLI Barbera del Valles Open 2018"]
[Site "Barbera del Valles"]
[Date "2018.07.12"]
[Round "9"]
[White "Stella, Andrea"]
[Black "Iniyan, P."]
[Result "1/2-1/2"]
[ECO "A49"]
[WhiteElo "2504"]
[BlackElo "2451"]
[Annotator "RC"]
[PlyCount "45"]
[EventDate "2018.07.04"]
[EventType "swiss"]
[EventCountry "ESP"]
[SourceTitle "playchess.com"]
[Source "ChessBase"]
[SourceQuality "1"]
[TimeControl "5400+30"]

1. d4 {[%emt 0:02:46]} Nf6 {[%emt 0:00:00]} 2. Nf3 {[%emt 0:00:14]} g6 {[%emt 0:00:00]} 3. g3 {[%emt 0:00:06]} Bg7 {[%emt 0:00:02]} 4. Bg2 {[%emt 0:00:05]} O-O {[%emt 0:00:07]} 5. O-O {[%emt 0:00:15]} d6 {[%emt 0:00:08]} 6. b3 {[%emt 0:00:37]} Nbd7 {[%emt 0:02:33]} 7. Bb2 {[%emt 0:02:03]} e5 {[%emt 0:05:14]} 8. dxe5 {[%emt 0:00:49]} Ng4 {[%emt 0:00:04]} 9. Qc1 {[%emt 0:02:57]} Ngxe5 {[%emt 0:02:39]} 10. Nxe5 {[%emt 0:01:33]} dxe5 {[%emt 0:08:14]} 11. Nc3 {[%emt 0:04:57]} f5 {[%emt 0:12:06]} 12. Ba3 {[%emt 0:06:49]} Rf6 {[%emt 0:03:30]} 13. e4 {[%emt 0:09:39]} c6 {[%emt 0:00:08]} 14. f4 {[%emt 0:06:03]} exf4 {[%emt 0:08:44]} 15. Qxf4 {[%emt 0:01:20]} Rf7 {[%emt 0:03:21]} 16. Bb2 {[%emt 0:15:17]} Ne5 {[%emt 0:01:29]} 17. Rad1 {[%emt 0:18:09]} Qb6+ {[%emt 0:00:08]} 18. Kh1 {[%emt 0:00:29]} fxe4 {[%emt 0:00:20]} 19. Qg5 {[%emt 0:00:03]} Bf5 {[%emt 0:06:55]} 20. Nxe4 {[%emt 0:03:10]} Bxe4 {[%emt 0:01:46]} 21. Bxe4 {[%emt 0:02:06]} Raf8 {[%emt 0:00:02]} 22. Rfe1 {[%emt 0:02:59]} Bf6 {[%emt 0:02:17]} 23. Qf4 {[%emt 0:04:24]} 1/2-1/2